bitfinex/quotes_ETHUSD_20250604
["timestamp","ask_amount","ask_price","bid_price","bid_amount"]
[1749071404053,4.61115144,2600.7,2599.6,4.61115144]
[1749071404264,0.55,2600.6,2600.4,8.292]
[1749071404579,4.61115144,2600.4,2599.4,0.38469754]
[1749071404744,4.61115144,2600.4,2599.6,30.0]
[1749071405145,1.06611514,2600.5,2599.6,30.0]
[1749071405381,1.06611514,2600.5,2599.8,40.0]
[1749071405555,0.72755666,2600.4,2599.8,30.0]
[1749071406365,0.72755666,2600.4,2599.8,12.387955]
[1749071406748,0.72755666,2600.4,2599.8,11.011955]
[1749071410379,0.72755666,2600.4,2599.8,10.48317]
[1749071410583,0.72755666,2600.4,2599.5,9.96]
[1749071410584,1.4699,2600.3,2599.6,28.639024]
[1749071410752,1.4699,2600.3,2599.9,8.006]
[1749071411766,1.4699,2600.3,2600.0,6.338]
[1749071414706,1.4699,2600.3,2600.1,6.338]
[1749071416423,1.4699,2600.3,2600.2,8.292]
[1749071416725,2.13300514,2600.3,2600.2,8.292]
[1749071416862,0.66310514,2600.3,2600.2,8.292]
[1749071418214,0.55,2600.4,2600.2,8.292]
[1749071418525,0.55,2600.4,2600.2,9.96]
[1749071419433,0.55,2600.4,2600.3,6.338]
[1749071428525,0.55,2600.4,2600.3,8.004]
[1749071430978,0.55,2600.4,2600.3,1.666]
[1749071431176,7.41230658,2600.4,2600.3,8.002]
[1749071431483,6.74825144,2600.4,2600.3,8.002]
[1749071431656,1.9934,2600.3,2600.2,8.292]
[1749071431975,1.9934,2600.3,2600.2,16.294]
[1749071432470,2.65385514,2600.3,2600.2,16.294]
[1749071437199,2.65385514,2600.3,2600.2,16.293]
[1749071441363,2.65385514,2600.3,2600.2,8.292]
[1749071441658,2.65385514,2600.3,2600.2,16.293]
[1749071442369,1.589,2600.6,2600.2,16.293]
[1749071442718,0.55,2600.5,2600.2,16.293]
[1749071442918,1.589,2600.6,2600.2,16.293]
[1749071443433,0.55,2600.5,2600.2,16.293]
[1749071444056,0.7639,2600.5,2600.2,16.293]
[1749071448702,0.7639,2600.5,2600.3,6.334]
[1749071451389,0.7639,2600.5,2600.4,1.666]
[1749071455350,0.7639,2600.5,2600.4,7.999]
[1749071456265,0.7639,2600.5,2600.4,16.292]
[1749071456420,0.7639,2600.5,2600.4,8.293]
[1749071456621,0.7639,2600.5,2600.4,16.289]
[1749071459876,0.7639,2600.5,2600.4,9.956]
[1749071460079,0.7639,2600.5,2600.4,16.288]
[1749071460314,0.2,2600.0,2599.2,4.61115144]
[1749071460505,0.2,2600.0,2599.5,36.612189]
[1749071460707,0.2,2600.0,2599.7,23.040407]
[1749071461012,0.2,2600.0,2599.7,10.855334]
[1749071461418,0.2,2600.0,2599.7,9.075407]
[1749071461600,0.2,2600.0,2599.6,9.956]
[1749071461601,0.2,2600.0,2599.9,6.857181]
[1749071469651,0.2,2600.0,2599.9,8.520181]
[1749071472134,0.2,2600.1,2599.9,8.520181]
[1749071472338,0.2,2600.1,2600.0,10.0]
[1749071474103,0.2,2600.1,2600.0,18.292]
[1749071474308,0.2,2600.1,2600.0,8.292]
[1749071476465,0.2,2600.1,2600.0,14.621]
[1749071478935,0.2,2600.1,2600.0,16.284]
[1749071480072,0.2,2600.1,2600.0,9.955]
[1749071480268,0.2,2600.1,2600.0,16.284]
[1749071481379,0.2,2600.1,2600.0,9.955]
[1749071481599,4.4349186,2600.1,2600.0,9.955]
[1749071481736,10.16008906,2600.1,2600.0,9.955]
[1749071482076,10.16008906,2600.1,2600.0,16.283]
[1749071482433,10.16008906,2600.1,2598.9,30.0]
[1749071482434,0.2,2599.4,2598.9,30.0]
[1749071482786,0.2,2599.4,2599.1,30.0]
[1749071483088,0.2,2599.4,2599.3,30.0]
[1749071483571,0.2,2599.4,2599.3,31.805917]
[1749071483777,0.2,2599.4,2599.3,14.36782651]
[1749071483978,0.2,2599.4,2599.3,15.747827]
[1749071484282,0.2,2599.4,2599.3,14.939853]
[1749071484575,0.2,2599.6,2599.3,14.939853]
[1749071484749,0.2,2599.4,2599.3,14.939853]
[1749071484950,0.2,2599.4,2599.3,6.328]
[1749071485162,0.2,2599.4,2599.3,21.267853]
[1749071485364,0.2,2599.6,2599.3,21.267853]
[1749071485566,0.2,2599.4,2599.3,6.328]
[1749071485872,0.2,2599.4,2599.3,21.267853]
[1749071486069,0.2,2599.6,2599.3,21.267853]
[1749071486260,0.2,2599.6,2599.4,14.939753]
[1749071486990,0.22,2599.9,2599.5,30.0]
[1749071487433,0.22,2599.9,2599.7,28.949793]
[1749071487639,0.22,2599.9,2599.8,1.66]
[1749071487842,0.22,2599.9,2599.8,27.952761]
[1749071488082,0.22,2599.9,2599.8,27.672915]
[1749071488257,0.22,2599.9,2599.8,34.000915]
[1749071488661,0.1929,2599.9,2599.8,34.000915]
[1749071489950,0.1929,2599.9,2599.8,33.486198]
[1749071493489,0.1929,2599.9,2599.8,41.779198]
[1749071494179,0.1929,2599.9,2599.8,23.337983]
[1749071495591,0.1929,2599.9,2599.8,23.336983]
[1749071498496,0.1929,2599.9,2599.8,13.962023]
[1749071498672,0.1929,2599.9,2599.8,21.948023]
[1749071506607,4.80087313,2599.9,2599.8,16.278]
[1749071506806,0.1929,2599.9,2599.8,16.278]
[1749071510094,0.1929,2599.9,2599.8,16.277]
[1749071513954,0.1929,2599.9,2599.8,9.953]
[1749071514162,5.35087313,2599.9,2599.8,16.277]
[1749071514856,0.7429,2599.9,2599.8,16.277]
[1749071516960,0.1929,2599.9,2599.8,16.277]
[1749071517163,0.1929,2599.9,2599.8,46.277]
[1749071517315,0.1929,2599.9,2599.8,45.998323]
[1749071517881,0.1929,2599.9,2599.8,44.715123]
[1749071518143,0.1929,2599.9,2599.8,38.913804]
[1749071519411,0.1929,2600.5,2599.8,43.52177713]
[1749071519655,0.1929,2600.8,2600.2,4.60797313]
[1749071519813,0.1929,2600.8,2600.2,12.997269]
[1749071520013,0.1929,2600.8,2600.1,28.925853]
[1749071520336,0.1929,2600.8,2600.3,26.134729]
[1749071520521,0.1929,2600.8,2600.4,7.979]
[1749071520855,0.1929,2600.8,2600.5,14.531929]
[1749071523353,0.1929,2600.8,2600.5,7.42625453]
[1749071523566,0.1929,2600.8,2600.7,10.0]
[1749071523897,0.1929,2600.8,2600.5,22.368318]
[1749071524021,0.1929,2600.8,2600.6,13.078084]
[1749071524224,0.1929,2600.8,2600.5,27.038274]
[1749071525246,0.1929,2600.8,2600.5,19.846538]
[1749071526851,0.1929,2600.8,2600.5,16.768538]
[1749071527154,0.1929,2600.8,2600.5,12.494524]
[1749071531536,0.1929,2600.8,2600.6,6.319]
[1749071531812,0.1929,2600.8,2600.7,4.239749]
[1749071533714,0.1929,2600.8,2600.7,12.529749]
[1749071534819,0.1929,2600.8,2600.7,18.318849]
[1749071540496,0.1929,2600.8,2600.7,9.947]
[1749071540908,0.1929,2600.8,2600.7,23.271355]
[1749071541108,0.1929,2601.0,2600.8,23.327425]
[1749071541926,0.1929,2601.2,2600.8,29.644425]
[1749071542299,0.1929,2601.0,2600.8,29.644425]
[1749071543140,0.1929,2601.2,2600.8,29.644425]
[1749071543340,1.4255,2601.5,2600.8,29.644425]
[1749071543341,0.1929,2601.0,2600.8,29.644425]
[1749071543642,0.1929,2601.0,2600.8,27.326231]
[1749071543824,0.1929,2601.2,2600.8,27.326231]
[1749071544145,0.1929,2601.0,2600.8,27.326231]
[1749071546046,0.1929,2601.2,2600.8,27.326231]
[1749071546341,0.1929,2601.0,2600.8,27.326231]
[1749071549346,0.1929,2601.0,2600.8,7.943185]
[1749071549640,4.62797313,2600.9,2600.8,1.654]
[1749071549810,5.25110044,2600.9,2600.8,7.969]
[1749071550009,7.21150044,2600.9,2600.8,1.654]
[1749071550213,0.55,2600.8,2599.7,23.327425]
[1749071550418,5.15797313,2600.8,2599.9,33.327425]
[1749071550618,5.15797313,2600.8,2599.9,23.327425]
[1749071551720,0.1929,2600.5,2599.9,23.327425]
[1749071552251,0.1929,2600.5,2600.1,23.327425]
[1749071553514,0.1929,2600.5,2600.1,15.880408]
[1749071557464,0.1929,2600.5,2600.2,8.29]
[1749071557751,0.1929,2600.5,2600.3,12.843651]
[1749071557953,0.1929,2600.5,2600.2,8.29]
[1749071557954,0.1929,2600.5,2600.4,1.654]
[1749071560330,0.1929,2600.5,2600.4,9.945]
[1749071560931,1.6701,2600.5,2600.4,9.945]
[1749071561540,0.1929,2600.5,2600.4,16.259]
[1749071561955,0.1929,2600.5,2600.4,32.139408]
[1749071562642,0.1929,2600.7,2600.5,15.880408]
[1749071563276,0.2129,2600.9,2600.5,20.48838113]
[1749071563573,0.2129,2600.9,2600.5,15.880408]
[1749071565034,0.2129,2600.9,2600.7,25.880408]
[1749071565240,0.2129,2600.9,2600.5,15.880408]
[1749071565445,0.2129,2600.9,2600.7,25.880408]
[1749071565644,0.2129,2600.9,2600.8,6.23429]
[1749071565862,0.2129,2600.9,2600.8,5.79400128]
[1749071566059,0.2129,2600.9,2600.8,5.435355]
[1749071567763,0.2129,2600.9,2600.8,1.654]
[1749071568062,0.2129,2600.9,2600.8,8.960624]
[1749071568262,0.2129,2600.9,2600.8,1.654]
[1749071569765,4.82087313,2600.9,2600.6,10.0]
[1749071569935,4.60797313,2600.7,2600.4,8.291]
[1749071570271,4.60797313,2600.7,2600.5,7.966]
[1749071572873,0.2129,2600.9,2600.7,10.0]
[1749071573024,0.2129,2600.9,2600.7,26.884803]
[1749071573223,0.2129,2600.9,2600.6,30.0]
[1749071574777,0.02,2600.9,2600.7,30.0]
[1749071574933,0.1929,2601.3,2600.7,30.0]
[1749071575133,0.1929,2601.3,2600.6,30.0]
[1749071577380,1.7214,2601.5,2600.7,30.0]
[1749071577545,1.5193,2601.7,2601.1,30.0]
[1749071577744,1.5193,2601.7,2601.3,40.0]
[1749071578062,1.5193,2601.7,2601.3,30.0]
[1749071579662,1.5193,2601.7,2601.4,0.35789634]
[1749071579857,1.5193,2601.7,2601.5,0.35789634]
[1749071580179,0.1929,2601.8,2601.2,7.961]
[1749071580329,0.1929,2601.8,2601.4,17.64804]
[1749071580526,0.1929,2601.8,2601.3,28.33408]
[1749071580766,0.1929,2601.8,2601.3,18.33408]
[1749071581032,0.1929,2601.8,2601.2,7.961]
[1749071581033,0.1929,2601.8,2601.5,10.0]
[1749071581262,0.1929,2601.8,2601.6,0.35786651]
[1749071581433,0.1929,2601.8,2601.7,8.64586651]
[1749071581778,0.1929,2601.8,2601.7,8.64586007]
[1749071581931,0.1929,2601.8,2601.7,8.64583989]
[1749071582273,0.1929,2601.8,2601.7,8.288]
[1749071582472,0.02,2601.9,2601.7,8.288]
[1749071582645,0.02,2601.9,2601.8,7.886128]
[1749071583079,0.1929,2602.4,2602.0,10.0]
[1749071583278,0.1929,2602.4,2602.2,18.605327]
[1749071583581,1.7323,2602.6,2602.2,8.605327]
[1749071583991,0.1929,2602.5,2602.2,8.605327]
[1749071584338,0.1929,2602.3,2602.2,5.29132]
[1749071584538,0.1929,2602.5,2602.3,10.0]
[1749071584842,1.5394,2602.6,2602.4,1.65]
[1749071585046,0.1929,2602.5,2602.4,1.65]
[1749071585247,1.5394,2602.6,2602.4,1.65]
[1749071586183,0.1929,2602.5,2602.4,1.65]
[1749071586589,1.5394,2602.6,2602.4,1.65]
[1749071586942,0.1929,2602.5,2602.4,1.65]
[1749071587142,1.5394,2602.6,2602.4,1.65]
[1749071587339,0.1929,2602.5,2602.4,1.65]
[1749071587539,0.02,2602.9,2602.4,1.65]
[1749071587540,0.1929,2602.7,2602.4,1.65]
[1749071587793,0.1929,2602.5,2602.4,19.414484]
[1749071588118,0.1929,2602.5,2602.4,1.65]
[1749071590307,0.1929,2602.5,2602.4,7.956]
[1749071592191,0.1929,2602.7,2602.4,7.956]
[1749071592386,0.1929,2602.5,2602.4,7.956]
[1749071593558,0.1929,2602.7,2602.4,7.956]
[1749071593759,0.1929,2602.5,2602.4,7.956]
[1749071594004,0.1929,2602.7,2602.4,7.956]
[1749071594266,0.1929,2602.5,2602.4,7.956]
[1749071594809,0.1929,2602.5,2602.4,7.955]
[1749071596613,0.1929,2602.7,2602.4,7.955]
[1749071597668,0.1929,2602.7,2602.5,10.0]
[1749071597868,0.02,2602.9,2602.6,7.232688]
[1749071598068,0.02,2602.9,2602.8,10.0]
[1749071598302,0.02,2602.9,2602.7,10.0]
[1749071598527,0.02,2602.9,2602.8,10.0]
[1749071598811,0.02,2602.9,2602.5,4.60797313]
[1749071598984,0.02,2602.9,2602.6,18.001157]
[1749071599181,0.02,2602.9,2602.8,17.749314]
[1749071599413,0.02,2602.9,2602.8,7.749314]
[1749071600789,0.1929,2603.6,2603.1,30.0]
[1749071600991,0.1929,2603.6,2603.2,16.237]
[1749071601178,0.1929,2603.3,2603.2,16.237]
[1749071602707,0.1929,2603.6,2603.2,16.237]
[1749071602911,0.1929,2603.3,2603.2,16.237]
[1749071603423,0.1929,2603.5,2603.2,16.237]
[1749071603604,0.1929,2603.3,2603.2,16.237]
[1749071603808,1.4734,2603.7,2603.2,16.237]
[1749071603809,0.1929,2603.5,2603.2,16.237]
[1749071604123,0.1929,2603.3,2603.2,16.237]
[1749071604317,0.1929,2603.5,2603.2,16.237]
[1749071604619,0.1929,2603.5,2603.3,10.369692]
[1749071604819,0.1929,2603.5,2603.3,8.478716]
[1749071605227,0.1929,2603.4,2603.3,8.478716]
[1749071605413,1.6663,2603.7,2603.4,10.0]
[1749071605726,0.2129,2603.9,2603.6,4.60797313]
[1749071605925,0.02,2603.9,2603.7,10.0]
[1749071606219,0.02,2603.9,2603.6,4.60797313]
[1749071607089,0.1929,2603.7,2603.5,22.004277]
[1749071607430,0.2129,2603.9,2603.6,7.948]
[1749071607733,0.02,2603.9,2603.6,7.948]
[1749071608283,0.1929,2603.7,2603.6,7.948]
[1749071608480,0.02,2603.9,2603.6,7.948]
[1749071608914,0.1929,2603.7,2603.6,7.948]
[1749071609121,0.02,2603.9,2603.6,23.07804213]
[1749071609281,0.02,2603.9,2603.8,31.31878313]
[1749071609798,0.1929,2604.6,2603.9,29.733742]
[1749071610013,0.1929,2604.6,2604.3,4.60797313]
[1749071610226,0.1929,2604.6,2603.7,0.4778729]
[1749071610394,1.8028,2604.8,2604.1,23.935249]
[1749071610588,0.1929,2604.6,2604.2,4.60797313]
[1749071610809,0.1929,2604.6,2604.3,19.202095]
[1749071611019,0.1929,2604.8,2604.4,1.647]
[1749071611220,0.02,2604.9,2604.5,8.282]
[1749071611490,0.02,2604.9,2604.6,6.3]
[1749071611717,0.1929,2604.7,2604.6,6.3]
[1749071613709,0.2129,2604.9,2604.6,6.3]
[1749071613939,0.1929,2604.7,2604.6,6.3]
[1749071618159,0.02,2604.9,2604.6,33.312458]
[1749071618307,0.02,2604.9,2604.6,10.90797313]
[1749071618725,0.02,2604.9,2604.7,9.925]
[1749071619357,0.2129,2604.9,2604.7,9.925]
[1749071619647,0.2129,2604.9,2604.8,29.138117]
[1749071619648,0.02,2604.9,2604.8,29.138117]
[1749071619811,0.02,2604.9,2604.8,35.434117]
[1749071621343,0.02,2604.9,2604.8,44.97446488]
[1749071623305,0.02,2604.9,2604.8,46.61946488]
[1749071624136,0.02,2604.9,2604.8,47.50320108]
[1749071624929,5.45704589,2605.7,2604.9,30.0]
[1749071625129,5.45704589,2605.7,2605.5,30.0]
[1749071625347,4.75359856,2605.7,2605.6,37.94]
[1749071626424,4.75359856,2605.7,2605.5,30.0]
[1749071626625,4.75359856,2605.7,2605.6,37.939]
[1749071627318,0.02,2605.9,2605.6,37.939]
[1749071627524,0.02,2605.9,2605.8,39.54034788]
[1749071628384,0.1929,2607.6,2605.9,0.55]
[1749071628673,1.6851,2607.2,2606.4,22.15315392]
[1749071628857,1.6851,2607.2,2606.2,30.0]
[1749071632246,0.1929,2607.2,2606.5,30.0]
[1749071632421,0.1929,2607.3,2606.7,40.0]
[1749071632628,0.1929,2607.1,2606.8,36.291]
[1749071633456,0.1929,2607.4,2606.8,36.291]
[1749071633776,0.1929,2607.1,2606.8,36.291]
[1749071634783,0.1929,2607.1,2606.8,7.935]
[1749071634986,0.1929,2607.1,2606.8,37.935]
[1749071635148,0.1929,2607.1,2606.8,23.170329]
[1749071635341,1.4917,2606.9,2606.8,14.999962]
[1749071635547,0.1929,2606.7,2605.8,30.0]
[1749071635747,0.1929,2606.7,2606.0,40.0]
[1749071635984,0.1929,2606.5,2606.2,29.608144]
[1749071636188,0.1929,2606.5,2606.2,4.487159]
[1749071636495,0.1929,2606.5,2606.4,8.89444]
[1749071636696,0.1929,2606.5,2606.2,29.079236]
[1749071636996,0.1929,2606.5,2606.2,9.8949543]
[1749071637160,0.1929,2606.5,2606.2,15.568725]
[1749071638763,1.4879,2606.4,2606.3,1.643]
[1749071638941,1.4879,2606.4,2606.3,7.932]
[1749071639788,1.4879,2606.4,2606.3,2.899288]
[1749071639995,1.4879,2606.4,2606.3,12.813288]
[1749071640408,0.1929,2606.7,2606.4,30.0]
[1749071640605,1.5362,2606.9,2606.6,30.0]
[1749071640789,0.02,2606.9,2606.6,26.041742]
[1749071640979,0.02,2606.9,2606.8,31.898206]
[1749071641183,0.02,2606.9,2606.8,21.898206]
[1749071641925,0.02,2606.9,2606.8,17.056511]
[1749071642510,0.1929,2608.0,2606.9,30.0]
[1749071642724,1.5162,2608.3,2607.7,5.48406]
[1749071642725,0.1929,2607.8,2607.7,5.48406]
[1749071642864,0.1929,2607.8,2607.7,10.896469]
[1749071645305,1.5162,2608.3,2607.7,10.896469]
[1749071645306,0.1929,2608.0,2607.7,10.896469]
[1749071645488,1.7091,2608.3,2607.8,13.546509]
[1749071645694,1.5729,2608.5,2607.8,13.99141167]
[1749071647323,0.1929,2608.6,2607.8,13.99141167]
[1749071647471,0.1929,2608.6,2607.8,22.25941167]
[1749071648010,1.5729,2609.1,2607.9,30.0]
[1749071648213,0.1929,2608.8,2608.3,30.0]
[1749071648435,1.5729,2609.1,2608.3,30.0]
[1749071648626,1.7658,2609.1,2608.5,9.54034788]
[1749071648793,1.5729,2609.1,2608.7,14.673296]
[1749071648989,1.5729,2609.1,2608.8,24.181185]
[1749071649190,0.2129,2608.9,2608.8,11.434236]
[1749071649406,0.02,2608.9,2608.8,11.434236]
[1749071649615,0.2129,2608.9,2608.8,11.434236]
[1749071649920,0.02,2608.9,2608.8,10.410956]
[1749071650215,0.02,2608.9,2608.8,19.95130388]
[1749071652031,0.02,2608.9,2608.7,9.54034788]
[1749071652172,0.02,2608.9,2608.8,37.966]
[1749071653640,0.02,2608.9,2608.8,30.0]
[1749071653933,0.02,2608.9,2608.8,36.53694688]
[1749071656431,0.02,2608.9,2608.8,36.98184955]
[1749071657591,0.02,2609.9,2609.0,40.0]
[1749071657821,0.02,2609.9,2609.7,30.0]
[1749071658010,0.02,2609.9,2609.8,37.972]
[1749071658183,0.02,2609.9,2609.8,13.414096]
[1749071658378,0.02,2609.9,2609.8,5.442096]
[1749071658685,1.5747,2609.9,2609.8,11.200441]
[1749071660130,1.5747,2609.9,2609.8,10.01082]
[1749071660699,0.02,2609.9,2609.8,10.01082]
[1749071660995,0.2129,2609.9,2609.8,10.01082]
[1749071661196,0.2129,2609.9,2609.8,3.67982]
[1749071661405,1.7778,2609.9,2609.8,7.983]
[1749071661788,1.7778,2609.9,2609.8,7.984]
[1749071662730,1.7778,2609.9,2609.1,8.264]
[1749071662731,0.1929,2609.6,2609.2,24.516998]
[1749071662975,0.1929,2609.4,2609.3,37.984]
[1749071663252,0.1929,2609.4,2609.3,18.992941]
[1749071663389,0.1929,2609.4,2609.3,10.066753]
[1749071663715,0.1929,2609.4,2609.3,7.984]
[1749071663917,1.7578,2609.4,2609.3,17.983]
[1749071664237,1.7578,2609.4,2609.3,7.983]
[1749071664417,1.7578,2609.4,2609.3,10.676233]
[1749071664819,0.1929,2609.2,2609.1,10.304157]
[1749071665135,0.1929,2609.2,2609.1,11.945157]
[1749071665323,0.1929,2609.2,2609.1,18.290157]
[1749071665520,0.1929,2609.2,2609.1,16.25]
[1749071666037,1.7365,2609.2,2609.1,9.905]
[1749071666255,1.7365,2609.2,2609.1,16.249]
[1749071666550,1.7365,2609.2,2609.1,9.905]
[1749071666696,1.7365,2609.2,2609.1,16.251]
[1749071667971,0.1929,2608.8,2608.2,30.0]
[1749071668174,0.1929,2608.8,2608.4,30.0]
[1749071668772,0.1929,2608.7,2608.4,25.308122]
[1749071669151,0.1929,2608.7,2608.6,21.232942]
[1749071669371,0.1929,2608.7,2608.6,6.192942]
[1749071669578,0.1929,2609.0,2608.7,10.0]
[1749071669741,0.1929,2608.8,2608.6,6.192942]
[1749071670072,0.1929,2608.8,2608.7,10.0]
[1749071670369,0.1929,2608.8,2608.6,11.198477]
[1749071671182,0.1929,2608.7,2608.6,11.198477]
[1749071671995,0.1929,2609.0,2608.6,11.198477]
[1749071672163,0.1929,2608.7,2608.6,11.198477]
[1749071672947,0.1929,2608.8,2608.7,6.27375]
[1749071673149,0.1929,2608.8,2608.7,8.015]
[1749071674086,0.1929,2608.8,2608.7,1.678]
[1749071674386,1.5436,2609.2,2608.7,7.067396]
[1749071674592,0.1929,2608.8,2608.7,7.067396]
[1749071675252,0.1929,2608.8,2608.7,13.403396]
[1749071675860,1.5436,2609.2,2608.7,10.929827]
[1749071676096,1.5436,2609.2,2608.3,9.54034788]
[1749071676264,1.5436,2609.2,2608.4,18.508931]
[1749071676265,0.1929,2608.7,2608.4,18.508931]
[1749071676661,0.1929,2608.7,2608.0,11.913374]
[1749071676662,0.1929,2608.5,2608.0,11.913374]
[1749071676884,0.1929,2608.3,2607.8,26.124532]
[1749071677065,0.1929,2608.3,2607.8,18.14245988]
[1749071677286,1.5075,2608.2,2608.0,10.0]
[1749071677493,0.1929,2608.1,2608.0,5.434024]
[1749071677665,0.1929,2608.1,2608.0,12.003144]
[1749071677866,0.1929,2608.1,2608.0,9.941]
[1749071678273,0.1929,2608.1,2608.0,16.279]
[1749071678467,0.1929,2608.1,2608.0,18.325665]
[1749071679232,0.1929,2608.1,2608.0,8.263]
[1749071679513,0.1929,2608.1,2608.0,16.276]
[1749071680019,0.1929,2608.6,2608.1,30.0]
[1749071680168,0.1929,2608.6,2608.0,16.276]
[1749071680169,0.1929,2608.6,2608.5,31.58115888]
[1749071680366,1.542,2609.0,2608.6,30.0]
[1749071680611,1.542,2609.8,2609.0,18.518377]
[1749071680821,1.542,2609.8,2609.1,8.033]
[1749071681855,0.55,2609.7,2609.1,8.033]
[1749071682009,1.7512,2609.6,2609.1,8.033]
[1749071682234,0.55,2609.5,2609.1,8.033]
[1749071683298,0.1929,2609.2,2609.1,12.101023]
[1749071683510,0.55,2609.5,2609.1,12.101023]
[1749071683713,0.1929,2609.2,2609.1,12.10898]
[1749071683873,0.1929,2609.2,2609.1,8.033]
[1749071684073,1.8207,2609.2,2609.1,8.033]
[1749071685822,1.8207,2609.2,2609.1,14.121919]
[1749071686028,1.8207,2609.2,2609.1,1.678]
[1749071686179,1.8207,2609.2,2609.1,7.821114]
[1749071686523,1.8207,2609.2,2609.1,1.678]
[1749071686705,1.8207,2609.2,2609.1,3.760022]
[1749071687013,1.8207,2609.2,2609.1,1.678]
[1749071687173,1.8207,2609.2,2609.1,8.021]
[1749071689523,1.6278,2609.2,2609.1,8.021]
[1749071689680,1.8207,2609.2,2609.1,8.021]
[1749071691302,1.8207,2609.2,2609.1,1.678]
[1749071691516,1.8207,2609.2,2609.1,8.013]
[1749071691881,1.8207,2609.2,2609.1,16.276]
[1749071695003,1.6278,2609.2,2609.1,16.276]
[1749071695204,1.8207,2609.2,2609.1,16.276]
[1749071698219,2.3707,2609.2,2609.1,8.263]
[1749071698530,2.60777,2609.2,2609.1,16.251]
[1749071699226,0.1929,2608.7,2608.4,30.0]
[1749071699439,0.02259295,2608.7,2608.6,20.875031]
[1749071699637,1.57039295,2608.7,2608.6,2.473287]
[1749071699835,1.57039295,2608.7,2608.6,1.665]
[1749071700610,0.55,2608.6,2608.5,8.263]
[1749071700815,2.2723393,2608.6,2608.5,9.928]
[1749071701118,2.2723393,2608.6,2608.5,16.253]
[1749071701529,2.2723393,2608.6,2608.5,8.263]
[1749071701711,2.2723393,2608.6,2608.5,16.254]
[1749071702040,2.2723393,2608.6,2608.5,8.263]
[1749071702240,2.2723393,2608.6,2607.4,9.94899314]
[1749071702548,0.02259295,2607.6,2607.1,0.02]
[1749071702713,0.02259295,2607.6,2607.2,17.262392]
[1749071702916,0.02259295,2607.4,2607.2,17.262392]
[1749071703131,0.02259295,2607.4,2607.2,12.627511]
[1749071703653,0.02259295,2607.4,2607.3,30.008921]
[1749071704159,0.02259295,2607.4,2607.3,23.677921]
[1749071704402,0.02259295,2607.4,2607.3,30.006921]
[1749071704509,0.02259295,2607.4,2607.3,16.174122]
[1749071707632,0.02259295,2607.2,2607.1,16.278]
[1749071708566,0.02259295,2607.2,2607.1,9.95]
[1749071708769,2.19739295,2607.2,2607.1,16.277]
[1749071709334,2.19739295,2607.2,2607.1,9.95]
[1749071709335,2.41713224,2607.2,2607.1,9.95]
[1749071709665,2.41713224,2607.2,2607.1,16.281]
[1749071710267,0.02259295,2606.2,2606.1,2.541526]
[1749071710467,0.02259295,2606.2,2606.1,18.804526]
[1749071711041,0.02259295,2606.2,2606.1,9.953]
[1749071711246,0.02259295,2606.2,2606.1,16.285]
[1749071712286,0.02259295,2606.2,2606.1,16.284]
[1749071712487,0.02259295,2606.4,2606.1,26.23758894]
[1749071712689,0.02259295,2606.4,2606.2,30.41324106]
[1749071713003,0.02259295,2606.4,2606.3,28.468802]
[1749071713699,0.02259295,2606.4,2606.3,12.512558]
[1749071713906,0.02259295,2606.4,2606.2,20.366831]
[1749071714063,0.02259295,2606.4,2606.2,11.662096]
[1749071714263,0.02259295,2606.4,2606.3,10.0]
[1749071714468,0.02259295,2606.4,2606.3,12.370755]
[1749071714776,0.02259295,2606.4,2606.3,14.26731]
[1749071714980,0.02259295,2606.4,2606.3,7.999]
[1749071715203,0.02259295,2606.2,2606.1,8.287]
[1749071715410,0.02259295,2606.2,2606.1,16.286]
[1749071715592,0.02259295,2606.2,2606.1,9.953]
[1749071715769,0.02259295,2606.2,2606.1,16.286]
[1749071716473,0.02259295,2606.2,2606.1,16.285]
[1749071718316,0.02259295,2606.2,2606.1,9.953]
[1749071718475,0.02259295,2606.2,2606.1,16.283]
[1749071719712,0.02259295,2606.2,2606.1,9.953]
[1749071719929,0.02259295,2606.2,2606.1,16.285]
[1749071720641,0.02259295,2606.2,2606.1,8.287]
[1749071720784,1.61209295,2606.2,2606.1,16.284]
[1749071725128,1.61209295,2606.2,2606.1,9.953]
[1749071725434,1.61209295,2606.2,2606.1,16.278]
[1749071728227,2.16209295,2606.2,2606.1,9.953]
[1749071728476,2.37830225,2606.2,2606.1,9.953]
[1749071728629,2.37830225,2606.2,2606.1,16.274]
[1749071728828,2.37830225,2606.2,2606.1,9.953]
[1749071729038,2.37830225,2606.2,2606.1,16.274]
[1749071729925,2.37830225,2606.2,2606.1,16.272]
[1749071730126,2.37830225,2606.2,2606.1,9.953]
[1749071730357,2.37830225,2606.2,2606.1,16.275]
[1749071732168,2.16209295,2606.2,2606.1,16.275]
[1749071732352,0.02259295,2606.2,2606.1,16.275]
[1749071733646,0.02259295,2606.2,2606.1,9.948]
[1749071733851,2.12109295,2606.2,2606.1,16.277]